[Event "Titled Tuesday Blitz July 4 Late 2023"]
[White "Avila Rodriguez, Joshua Ad"]
[Black "Guerra Tulcan, Lenin"]
[WhiteFideId "5126444"]
[BlackFideId "3601382"]
[WhiteElo "2470"]
[BlackElo "2629"]
[Result "0-1"]
[Round "11"]
[TimeControl "180+2"]
[Date "2023.07.04"]
[WhiteClock "0:00:00"]
[BlackClock "0:00:16"]
[Board "67"]

1. Nf3 {[%clk 0:03:00]}  c5 {[%clk 0:03:00]} 2. e4 {[%clk 0:02:58]}  e6 {[%clk 0:03:00]} 3. d4 {[%clk 0:02:59]}  cxd4 {[%clk 0:03:00]} 4. Nxd4 {[%clk 0:03:00]}  Nc6 {[%clk 0:03:00]} 5. Nc3 {[%clk 0:03:00]}  Qc7 {[%clk 0:03:00]} 6. Be3 {[%clk 0:02:59]}  a6 {[%clk 0:02:59]} 7. g4 {[%clk 0:02:44]}  Nxd4 {[%clk 0:02:58]} 8. Qxd4 {[%clk 0:02:42]}  Ne7 {[%clk 0:02:58]} 9. O-O-O {[%clk 0:02:34]}  Nc6 {[%clk 0:02:58]} 10. Qd3 {[%clk 0:02:29]}  b5 {[%clk 0:02:57]} 11. f4 {[%clk 0:02:19]}  Bb7 {[%clk 0:02:57]} 12. Bg2 {[%clk 0:02:14]}  Rc8 {[%clk 0:02:56]} 13. Kb1 {[%clk 0:02:08]}  Be7 {[%clk 0:02:53]} 14. h4 {[%clk 0:01:52]}  Na5 {[%clk 0:02:53]} 15. h5 {[%clk 0:01:41]}  Nc4 {[%clk 0:02:52]} 16. Bc1 {[%clk 0:01:40]}  b4 {[%clk 0:02:45]} 17. Nd5 {[%clk 0:01:12]}  exd5 {[%clk 0:02:43]} 18. exd5 {[%clk 0:01:12]}  d6 {[%clk 0:02:40]} 19. Rde1 {[%clk 0:01:08]}  O-O {[%clk 0:02:29]} 20. Be4 {[%clk 0:01:07]}  Bf6 {[%clk 0:02:15]} 21. Bxh7+ {[%clk 0:01:04]}  Kh8 {[%clk 0:02:15]} 22. g5 {[%clk 0:00:55]}  Bxb2 {[%clk 0:02:04]} 23. Bxb2 {[%clk 0:00:54]}  Nxb2 {[%clk 0:02:05]} 24. Kxb2 {[%clk 0:00:51]}  Qc3+ {[%clk 0:02:05]} 25. Kb1 {[%clk 0:00:42]}  Qa3 {[%clk 0:01:30]} 26. Qxa3 {[%clk 0:00:28]}  bxa3 {[%clk 0:01:31]} 27. Be4 {[%clk 0:00:29]}  Rc4 {[%clk 0:01:31]} 28. g6 {[%clk 0:00:26]}  fxg6 {[%clk 0:00:38]} 29. hxg6+ {[%clk 0:00:23]}  Kg8 {[%clk 0:00:38]} 30. Rh4 {[%clk 0:00:08]}  Rb8 {[%clk 0:00:29]} 31. Kc1 {[%clk 0:00:06]}  Re8 {[%clk 0:00:27]} 32. Reh1 {[%clk 0:00:04]}  Kf8 {[%clk 0:00:27]} 33. Rh8+ {[%clk 0:00:02]}  Ke7 {[%clk 0:00:28]} 34. Rxe8+ {[%clk 0:00:03]}  Kxe8 {[%clk 0:00:28]} 35. Bd3 {[%clk 0:00:03]}  Rxf4 {[%clk 0:00:26]} 36. Rh7 {[%clk 0:00:03]}  Kf8 {[%clk 0:00:26]} 37. Rh8+ {[%clk 0:00:03]}  Ke7 {[%clk 0:00:26]} 38. Rg8 {[%clk 0:00:02]}  Kf6 {[%clk 0:00:25]} 39. Rf8+ {[%clk 0:00:02]}  Ke5 {[%clk 0:00:25]} 40. Rf7 {[%clk 0:00:02]}  Bxd5 {[%clk 0:00:24]} 41. Rxg7 {[%clk 0:00:03]}  Bxa2 {[%clk 0:00:23]} 42. Ra7 {[%clk 0:00:02]}  Ra4 {[%clk 0:00:20]} 43. Rxa6 {[%clk 0:00:02]}  Rxa6 {[%clk 0:00:20]} 44. Bxa6 {[%clk 0:00:03]}  Bg8 {[%clk 0:00:20]} 45. Bd3 {[%clk 0:00:03]}  Kd4 {[%clk 0:00:20]} 46. Kb1 {[%clk 0:00:02]}  Kc3 {[%clk 0:00:20]} 47. Ka1 {[%clk 0:00:03]}  d5 {[%clk 0:00:21]} 48. Bf5 {[%clk 0:00:03]}  d4 {[%clk 0:00:21]} 49. Bd3 {[%clk 0:00:04]}  Bd5 {[%clk 0:00:16]} 50. Bf5 {[%clk 0:00:03]}  Bg8 {[%clk 0:00:15]} 51. Bd3 {[%clk 0:00:03]}  a2 {[%clk 0:00:15]} 52. Bf5 {[%clk 0:00:02]}  Kd2 {[%clk 0:00:16]} 53. g7 {[%clk 0:00:02]}  Ke3 {[%clk 0:00:16]} 54. Bd3 {[%clk 0:00:00]}  Kf4 {[%clk 0:00:16]} 0-1


[Site "https://www.chess.com"]

[Event "Titled Tuesday Blitz July 4 Late 2023"]
[White "Bullen, Alex"]
[Black "Gardezi, Arsal"]
[WhiteFideId "1801627"]
[BlackFideId "30949521"]
[WhiteElo "2321"]
[BlackElo "2256"]
[Result "1-0"]
[Round "11"]
[TimeControl "180+2"]
[Date "2023.07.04"]
[WhiteClock "0:00:06"]
[BlackClock "0:00:00"]
[Board "68"]

1. d4 {[%clk 0:03:00]}  Nf6 {[%clk 0:02:55]} 2. Nf3 {[%clk 0:03:01]}  e6 {[%clk 0:02:54]} 3. Bf4 {[%clk 0:03:00]}  c5 {[%clk 0:02:54]} 4. e3 {[%clk 0:03:01]}  Qb6 {[%clk 0:02:53]} 5. Qc1 {[%clk 0:02:59]}  Nc6 {[%clk 0:02:53]} 6. c3 {[%clk 0:02:59]}  d5 {[%clk 0:02:54]} 7. Bd3 {[%clk 0:02:59]}  Bd7 {[%clk 0:02:52]} 8. Nbd2 {[%clk 0:02:57]}  Rc8 {[%clk 0:02:52]} 9. Qb1 {[%clk 0:02:57]}  Be7 {[%clk 0:02:50]} 10. O-O {[%clk 0:02:57]}  c4 {[%clk 0:02:46]} 11. Bc2 {[%clk 0:02:55]}  Qa6 {[%clk 0:02:46]} 12. b3 {[%clk 0:02:52]}  b5 {[%clk 0:02:46]} 13. a4 {[%clk 0:02:51]}  b4 {[%clk 0:02:45]} 14. cxb4 {[%clk 0:02:35]}  Nxb4 {[%clk 0:02:41]} 15. bxc4 {[%clk 0:02:32]}  dxc4 {[%clk 0:02:37]} 16. Rc1 {[%clk 0:02:21]}  O-O {[%clk 0:02:29]} 17. Ne5 {[%clk 0:02:14]}  c3 {[%clk 0:02:11]} 18. Ndf3 {[%clk 0:02:02]}  Bc6 {[%clk 0:02:05]} 19. Nxc6 {[%clk 0:01:57]}  Qxc6 {[%clk 0:01:50]} 20. Ne5 {[%clk 0:01:55]}  Qa6 {[%clk 0:01:45]} 21. Bg5 {[%clk 0:01:51]}  Nxc2 {[%clk 0:01:40]} 22. Qxc2 {[%clk 0:01:48]}  Nd5 {[%clk 0:01:38]} 23. Bxe7 {[%clk 0:01:41]}  Nxe7 {[%clk 0:01:39]} 24. Nd7 {[%clk 0:01:40]}  Nd5 {[%clk 0:01:22]} 25. Nxf8 {[%clk 0:01:35]}  Kxf8 {[%clk 0:01:22]} 26. Qb3 {[%clk 0:01:22]}  Qd6 {[%clk 0:01:05]} 27. Qa3 {[%clk 0:01:16]}  Qxa3 {[%clk 0:01:04]} 28. Rxa3 {[%clk 0:01:17]}  c2 {[%clk 0:01:00]} 29. Rb3 {[%clk 0:01:12]}  a5 {[%clk 0:01:00]} 30. Kf1 {[%clk 0:01:07]}  Nb4 {[%clk 0:00:57]} 31. Ke2 {[%clk 0:00:58]}  Na2 {[%clk 0:00:53]} 32. Kd2 {[%clk 0:00:56]}  Nxc1 {[%clk 0:00:53]} 33. Kxc1 {[%clk 0:00:57]}  Rc4 {[%clk 0:00:52]} 34. Ra3 {[%clk 0:00:51]}  Ke7 {[%clk 0:00:49]} 35. Ra2 {[%clk 0:00:37]}  Kf6 {[%clk 0:00:36]} 36. Rxc2 {[%clk 0:00:35]}  Rxa4 {[%clk 0:00:37]} 37. Kb2 {[%clk 0:00:35]}  h5 {[%clk 0:00:21]} 38. Rc5 {[%clk 0:00:35]}  g6 {[%clk 0:00:15]} 39. h4 {[%clk 0:00:31]}  Kg7 {[%clk 0:00:15]} 40. g3 {[%clk 0:00:25]}  Kf6 {[%clk 0:00:16]} 41. Re5 {[%clk 0:00:21]}  Kg7 {[%clk 0:00:09]} 42. Rc5 {[%clk 0:00:19]}  Kf6 {[%clk 0:00:09]} 43. f3 {[%clk 0:00:19]}  Kg7 {[%clk 0:00:09]} 44. g4 {[%clk 0:00:18]}  hxg4 {[%clk 0:00:08]} 45. fxg4 {[%clk 0:00:19]}  Kf6 {[%clk 0:00:08]} 46. g5+ {[%clk 0:00:19]}  Kg7 {[%clk 0:00:09]} 47. Rb5 {[%clk 0:00:17]}  Kg8 {[%clk 0:00:07]} 48. Rc5 {[%clk 0:00:17]}  Kg7 {[%clk 0:00:08]} 49. Rb5 {[%clk 0:00:17]}  Kg8 {[%clk 0:00:08]} 50. Re5 {[%clk 0:00:15]}  Kg7 {[%clk 0:00:08]} 51. Rc5 {[%clk 0:00:14]}  Kg8 {[%clk 0:00:09]} 52. Kb3 {[%clk 0:00:14]}  Ra1 {[%clk 0:00:08]} 53. Kc3 {[%clk 0:00:12]}  Ra3+ {[%clk 0:00:08]} 54. Kd2 {[%clk 0:00:12]}  Ra2+ {[%clk 0:00:08]} 55. Kd3 {[%clk 0:00:12]}  a4 {[%clk 0:00:08]} 56. Ra5 {[%clk 0:00:12]}  Rh2 {[%clk 0:00:06]} 57. Rxa4 {[%clk 0:00:12]}  Rxh4 {[%clk 0:00:06]} 58. Ra5 {[%clk 0:00:12]}  Kf8 {[%clk 0:00:05]} 59. Ke2 {[%clk 0:00:10]}  Rh3 {[%clk 0:00:04]} 60. Kf2 {[%clk 0:00:10]}  Kg7 {[%clk 0:00:04]} 61. Ke2 {[%clk 0:00:09]}  Kf8 {[%clk 0:00:05]} 62. Kd3 {[%clk 0:00:09]}  Rf3 {[%clk 0:00:05]} 63. Ke4 {[%clk 0:00:09]}  Rf5 {[%clk 0:00:02]} 64. Rxf5 {[%clk 0:00:09]}  gxf5+ {[%clk 0:00:02]} 65. Ke5 {[%clk 0:00:08]}  Kg7 {[%clk 0:00:03]} 66. d5 {[%clk 0:00:07]}  exd5 {[%clk 0:00:00]} 67. Kxf5 {[%clk 0:00:06]} 1-0


[Site "https://www.chess.com"]

[Event "Titled Tuesday Blitz July 4 Late 2023"]
[White "Uzcategui Rodriguez, Alejandro"]
[Black "Slovineanu, Viacheslav"]
[WhiteFideId "3903400"]
[BlackFideId "13900510"]
[WhiteElo "2443"]
[BlackElo "2353"]
[Result "0-1"]
[Round "11"]
[TimeControl "180+2"]
[Date "2023.07.04"]
[WhiteClock "0:00:00"]
[BlackClock "0:01:18"]
[Board "73"]

1. d4 {[%clk 0:02:57]}  Nf6 {[%clk 0:02:59]} 2. Nf3 {[%clk 0:02:56]}  e6 {[%clk 0:02:58]} 3. Bg5 {[%clk 0:02:55]}  d5 {[%clk 0:02:57]} 4. Nbd2 {[%clk 0:02:55]}  Be7 {[%clk 0:02:56]} 5. e3 {[%clk 0:02:55]}  Nbd7 {[%clk 0:02:53]} 6. Bd3 {[%clk 0:02:55]}  c5 {[%clk 0:02:53]} 7. c3 {[%clk 0:02:54]}  b6 {[%clk 0:02:53]} 8. O-O {[%clk 0:02:52]}  Bb7 {[%clk 0:02:53]} 9. Ne5 {[%clk 0:02:52]}  Nxe5 {[%clk 0:02:51]} 10. dxe5 {[%clk 0:02:53]}  Nd7 {[%clk 0:02:51]} 11. Bxe7 {[%clk 0:02:54]}  Qxe7 {[%clk 0:02:51]} 12. f4 {[%clk 0:02:55]}  O-O-O {[%clk 0:02:45]} 13. a4 {[%clk 0:02:52]}  f6 {[%clk 0:02:30]} 14. exf6 {[%clk 0:02:50]}  gxf6 {[%clk 0:02:29]} 15. a5 {[%clk 0:02:51]}  Rhg8 {[%clk 0:02:22]} 16. e4 {[%clk 0:02:40]}  c4 {[%clk 0:02:13]} 17. Bc2 {[%clk 0:02:40]}  Nc5 {[%clk 0:02:13]} 18. Qe2 {[%clk 0:02:36]}  dxe4 {[%clk 0:02:05]} 19. Nxe4 {[%clk 0:02:37]}  f5 {[%clk 0:02:05]} 20. Ng3 {[%clk 0:02:31]}  h5 {[%clk 0:01:47]} 21. axb6 {[%clk 0:02:21]}  axb6 {[%clk 0:01:44]} 22. Nxf5 {[%clk 0:02:13]}  exf5 {[%clk 0:01:20]} 23. Qxe7 {[%clk 0:02:11]}  Rxg2+ {[%clk 0:01:20]} 24. Kh1 {[%clk 0:02:10]}  Rxc2+ {[%clk 0:01:19]} 25. Qe4 {[%clk 0:00:00]}  Bxe4+ {[%clk 0:01:18]} 0-1


[Site "https://www.chess.com"]

[Event "Titled Tuesday Blitz July 4 Late 2023"]
[White "Ardila, Oscar Humberto"]
[Black "Mickiewicz, Piotr"]
[WhiteFideId "4404742"]
[BlackFideId "1114891"]
[WhiteElo "2341"]
[BlackElo "2433"]
[Result "1/2-1/2"]
[Round "11"]
[TimeControl "180+2"]
[Date "2023.07.04"]
[WhiteClock "0:00:17"]
[BlackClock "0:00:12"]
[Board "75"]

1. d4 {[%clk 0:02:55]}  Nf6 {[%clk 0:02:56]} 2. c4 {[%clk 0:02:55]}  c5 {[%clk 0:02:55]} 3. d5 {[%clk 0:02:55]}  e6 {[%clk 0:02:55]} 4. Nc3 {[%clk 0:02:54]}  exd5 {[%clk 0:02:55]} 5. cxd5 {[%clk 0:02:55]}  d6 {[%clk 0:02:55]} 6. e4 {[%clk 0:02:55]}  a6 {[%clk 0:02:55]} 7. a4 {[%clk 0:02:55]}  g6 {[%clk 0:02:55]} 8. Bd3 {[%clk 0:02:55]}  Bg7 {[%clk 0:02:54]} 9. h3 {[%clk 0:02:56]}  Nbd7 {[%clk 0:02:54]} 10. Bf4 {[%clk 0:02:55]}  Qe7 {[%clk 0:02:52]} 11. Nf3 {[%clk 0:02:52]}  Nh5 {[%clk 0:02:51]} 12. Bh2 {[%clk 0:02:51]}  Ne5 {[%clk 0:02:50]} 13. O-O {[%clk 0:02:47]}  Nxf3+ {[%clk 0:02:39]} 14. Qxf3 {[%clk 0:02:47]}  Be5 {[%clk 0:02:39]} 15. Rfe1 {[%clk 0:02:27]}  Bxh2+ {[%clk 0:02:34]} 16. Kxh2 {[%clk 0:02:27]}  Qe5+ {[%clk 0:02:33]} 17. Kg1 {[%clk 0:02:19]}  Nf4 {[%clk 0:02:31]} 18. Bf1 {[%clk 0:02:18]}  h5 {[%clk 0:02:30]} 19. Rad1 {[%clk 0:02:16]}  h4 {[%clk 0:02:28]} 20. Ne2 {[%clk 0:02:08]}  g5 {[%clk 0:02:27]} 21. Nxf4 {[%clk 0:02:07]}  gxf4 {[%clk 0:02:28]} 22. Qc3 {[%clk 0:02:05]}  f6 {[%clk 0:02:26]} 23. Qxe5+ {[%clk 0:01:58]}  fxe5 {[%clk 0:02:27]} 24. Be2 {[%clk 0:01:59]}  Bd7 {[%clk 0:02:24]} 25. b3 {[%clk 0:01:58]}  b5 {[%clk 0:02:21]} 26. axb5 {[%clk 0:01:55]}  axb5 {[%clk 0:02:21]} 27. Ra1 {[%clk 0:01:55]}  O-O {[%clk 0:02:17]} 28. Bg4 {[%clk 0:01:53]}  Bxg4 {[%clk 0:02:09]} 29. hxg4 {[%clk 0:01:53]}  f3 {[%clk 0:01:56]} 30. Rxa8 {[%clk 0:01:50]}  Rxa8 {[%clk 0:01:56]} 31. gxf3 {[%clk 0:01:50]}  Ra3 {[%clk 0:01:54]} 32. Rb1 {[%clk 0:01:46]}  Kg7 {[%clk 0:01:49]} 33. Kg2 {[%clk 0:01:46]}  Kg6 {[%clk 0:01:49]} 34. Rb2 {[%clk 0:01:06]}  Kg5 {[%clk 0:01:43]} 35. Rb1 {[%clk 0:01:06]}  b4 {[%clk 0:01:36]} 36. Kh3 {[%clk 0:01:01]}  c4 {[%clk 0:01:33]} 37. bxc4 {[%clk 0:01:00]}  Rxf3+ {[%clk 0:01:32]} 38. Kg2 {[%clk 0:01:00]}  Kxg4 {[%clk 0:01:22]} 39. Rxb4 {[%clk 0:01:00]}  h3+ {[%clk 0:01:22]} 40. Kg1 {[%clk 0:01:00]}  h2+ {[%clk 0:00:24]} 41. Kxh2 {[%clk 0:00:59]}  Rxf2+ {[%clk 0:00:24]} 42. Kg1 {[%clk 0:00:59]}  Rc2 {[%clk 0:00:25]} 43. Rb6 {[%clk 0:00:57]}  Kg3 {[%clk 0:00:24]} 44. Kf1 {[%clk 0:00:57]}  Kf3 {[%clk 0:00:23]} 45. Ke1 {[%clk 0:00:57]}  Rxc4 {[%clk 0:00:23]} 46. Rxd6 {[%clk 0:00:56]}  Rxe4+ {[%clk 0:00:22]} 47. Kd2 {[%clk 0:00:55]}  Rd4+ {[%clk 0:00:23]} 48. Kc3 {[%clk 0:00:55]}  Ke4 {[%clk 0:00:24]} 49. Rd8 {[%clk 0:00:44]}  Rd3+ {[%clk 0:00:21]} 50. Kc4 {[%clk 0:00:41]}  Rd1 {[%clk 0:00:20]} 51. d6 {[%clk 0:00:40]}  Ke3 {[%clk 0:00:20]} 52. Kc5 {[%clk 0:00:34]}  e4 {[%clk 0:00:21]} 53. d7 {[%clk 0:00:33]}  Kf3 {[%clk 0:00:12]} 54. Rf8+ {[%clk 0:00:30]}  Kg2 {[%clk 0:00:13]} 55. d8=Q {[%clk 0:00:30]}  Rxd8 {[%clk 0:00:12]} 56. Rxd8 {[%clk 0:00:30]}  e3 {[%clk 0:00:13]} 57. Re8 {[%clk 0:00:17]}  Kf2 {[%clk 0:00:12]} 58. Kd4 {[%clk 0:00:17]}  e2 {[%clk 0:00:12]} 59. Rf8+ {[%clk 0:00:17]}  Kg2 {[%clk 0:00:12]} 60. Rg8+ {[%clk 0:00:17]}  Kf2 {[%clk 0:00:12]} 61. Rf8+ {[%clk 0:00:17]}  Kg2 {[%clk 0:00:12]} 62. Re8 {[%clk 0:00:17]}  Kf2 {[%clk 0:00:12]} 63. Rf8+ {[%clk 0:00:17]} 1/2-1/2


[Site "https://www.chess.com"]

[Event "Titled Tuesday Blitz July 4 Late 2023"]
[White "CarolinaLujan"]
[Black "Toolin, Christopher"]
[BlackFideId "2024543"]
[WhiteElo "2317"]
[BlackElo "2416"]
[Result "0-1"]
[Round "11"]
[TimeControl "180+2"]
[Date "2023.07.04"]
[WhiteClock "0:01:46"]
[BlackClock "0:01:09"]
[Board "78"]

1. e4 {[%clk 0:02:55]}  c5 {[%clk 0:02:56]} 2. g3 {[%clk 0:02:55]}  e6 {[%clk 0:02:54]} 3. Bg2 {[%clk 0:02:55]}  Nc6 {[%clk 0:02:55]} 4. Ne2 {[%clk 0:02:53]}  d6 {[%clk 0:02:56]} 5. O-O {[%clk 0:02:53]}  g6 {[%clk 0:02:56]} 6. c3 {[%clk 0:02:53]}  Bg7 {[%clk 0:02:57]} 7. d4 {[%clk 0:02:54]}  cxd4 {[%clk 0:02:58]} 8. cxd4 {[%clk 0:02:55]}  Nge7 {[%clk 0:02:57]} 9. Nbc3 {[%clk 0:02:55]}  d5 {[%clk 0:02:57]} 10. e5 {[%clk 0:02:55]}  O-O {[%clk 0:02:57]} 11. Bg5 {[%clk 0:02:52]}  h6 {[%clk 0:02:55]} 12. Bf4 {[%clk 0:02:51]}  Bd7 {[%clk 0:02:55]} 13. Qd2 {[%clk 0:02:49]}  Kh7 {[%clk 0:02:54]} 14. h4 {[%clk 0:02:50]}  Rc8 {[%clk 0:02:46]} 15. g4 {[%clk 0:02:46]}  Ng8 {[%clk 0:02:40]} 16. h5 {[%clk 0:02:43]}  gxh5 {[%clk 0:02:24]} 17. gxh5 {[%clk 0:02:43]}  Qh4 {[%clk 0:02:25]} 18. Ng3 {[%clk 0:02:32]}  f6 {[%clk 0:02:14]} 19. exf6 {[%clk 0:02:21]}  Nxf6 {[%clk 0:02:04]} 20. Qd3+ {[%clk 0:02:21]}  Kh8 {[%clk 0:01:56]} 21. Be5 {[%clk 0:02:19]}  Ng4 {[%clk 0:01:49]} 22. Bxg7+ {[%clk 0:02:13]}  Kxg7 {[%clk 0:01:41]} 23. Qg6+ {[%clk 0:02:06]}  Kh8 {[%clk 0:01:42]} 24. Rfd1 {[%clk 0:01:55]}  Qh2+ {[%clk 0:01:23]} 25. Kf1 {[%clk 0:01:55]}  Rxf2+ {[%clk 0:01:24]} 26. Ke1 {[%clk 0:01:56]}  Qxg3 {[%clk 0:01:11]} 27. Ne2 {[%clk 0:01:45]}  Rxe2+ {[%clk 0:01:08]} 28. Kxe2 {[%clk 0:01:46]}  Qe3+ {[%clk 0:01:08]} 29. Kf1 {[%clk 0:01:46]}  Qf2# {[%clk 0:01:09]} 0-1


[Site "https://www.chess.com"]

[Event "Titled Tuesday Blitz July 4 Late 2023"]
[White "Santos, Rafael Ventura Dos"]
[Black "Herman, Daniel"]
[WhiteFideId "2122227"]
[BlackFideId "30935008"]
[WhiteElo "2291"]
[BlackElo "2416"]
[Result "0-1"]
[Round "11"]
[TimeControl "180+2"]
[Date "2023.07.04"]
[WhiteClock "0:00:10"]
[BlackClock "0:00:49"]
[Board "79"]

1. d4 {[%clk 0:02:58]}  d6 {[%clk 0:02:54]} 2. c4 {[%clk 0:02:58]}  e5 {[%clk 0:02:54]} 3. Nf3 {[%clk 0:02:40]}  e4 {[%clk 0:02:50]} 4. Ng5 {[%clk 0:02:31]}  f5 {[%clk 0:02:48]} 5. h4 {[%clk 0:02:26]}  Nf6 {[%clk 0:02:45]} 6. Nc3 {[%clk 0:02:24]}  h6 {[%clk 0:02:31]} 7. Nh3 {[%clk 0:02:23]}  g6 {[%clk 0:02:31]} 8. Nf4 {[%clk 0:02:22]}  Kf7 {[%clk 0:02:31]} 9. Qb3 {[%clk 0:02:18]}  c6 {[%clk 0:02:30]} 10. d5 {[%clk 0:02:12]}  c5 {[%clk 0:02:27]} 11. h5 {[%clk 0:02:02]}  g5 {[%clk 0:02:25]} 12. Ng6 {[%clk 0:01:56]}  Rg8 {[%clk 0:02:21]} 13. Bd2 {[%clk 0:01:52]}  Bg7 {[%clk 0:02:17]} 14. O-O-O {[%clk 0:01:25]}  Nxh5 {[%clk 0:02:16]} 15. Rxh5 {[%clk 0:01:12]}  Kxg6 {[%clk 0:02:16]} 16. Rh1 {[%clk 0:01:13]}  Nd7 {[%clk 0:02:15]} 17. g4 {[%clk 0:01:11]}  Ne5 {[%clk 0:02:15]} 18. gxf5+ {[%clk 0:01:10]}  Bxf5 {[%clk 0:02:16]} 19. Bg2 {[%clk 0:01:07]}  b5 {[%clk 0:02:02]} 20. cxb5 {[%clk 0:01:00]}  c4 {[%clk 0:01:58]} 21. Qb4 {[%clk 0:00:56]}  a5 {[%clk 0:01:46]} 22. Qa3 {[%clk 0:00:53]}  e3 {[%clk 0:01:27]} 23. Bxe3 {[%clk 0:00:51]}  Ng4 {[%clk 0:01:18]} 24. Bf3 {[%clk 0:00:49]}  Nxe3 {[%clk 0:01:18]} 25. fxe3 {[%clk 0:00:49]}  Qb6 {[%clk 0:01:11]} 26. e4 {[%clk 0:00:41]}  Bd7 {[%clk 0:01:09]} 27. Kb1 {[%clk 0:00:18]}  Rgf8 {[%clk 0:01:07]} 28. Rdf1 {[%clk 0:00:16]}  Kh7 {[%clk 0:01:02]} 29. Bh5 {[%clk 0:00:15]}  Be5 {[%clk 0:00:56]} 30. Bf3 {[%clk 0:00:14]}  Qe3 {[%clk 0:00:54]} 31. Nd1 {[%clk 0:00:13]}  Qxa3 {[%clk 0:00:53]} 32. bxa3 {[%clk 0:00:13]}  Bxb5 {[%clk 0:00:54]} 33. Ne3 {[%clk 0:00:13]}  Rab8 {[%clk 0:00:52]} 34. Kc2 {[%clk 0:00:13]}  Ba4+ {[%clk 0:00:52]} 35. Kc1 {[%clk 0:00:12]}  Bf4 {[%clk 0:00:50]} 36. Rh3 {[%clk 0:00:10]}  Bxe3# {[%clk 0:00:49]} 0-1


[Site "https://www.chess.com"]

[Event "Titled Tuesday Blitz July 4 Late 2023"]
[White "Fiol, Fabrice"]
[Black "The_Straightforward_Rook"]
[WhiteFideId "611670"]
[WhiteElo "2514"]
[BlackElo "2329"]
[Result "0-1"]
[Round "11"]
[TimeControl "180+2"]
[Date "2023.07.04"]
[WhiteClock "0:00:03"]
[BlackClock "0:00:20"]
[Board "82"]

1. e4 {[%clk 0:03:00]}  e5 {[%clk 0:02:58]} 2. Nf3 {[%clk 0:02:57]}  Nc6 {[%clk 0:02:58]} 3. Bc4 {[%clk 0:02:56]}  Bc5 {[%clk 0:02:58]} 4. d3 {[%clk 0:02:56]}  a6 {[%clk 0:02:56]} 5. c3 {[%clk 0:02:56]}  d6 {[%clk 0:02:53]} 6. Bb3 {[%clk 0:02:56]}  Qf6 {[%clk 0:02:49]} 7. Nbd2 {[%clk 0:02:51]}  Nge7 {[%clk 0:02:48]} 8. Nf1 {[%clk 0:02:49]}  Bg4 {[%clk 0:02:46]} 9. Ne3 {[%clk 0:02:49]}  Bxf3 {[%clk 0:02:45]} 10. Qxf3 {[%clk 0:02:48]}  Qxf3 {[%clk 0:02:45]} 11. gxf3 {[%clk 0:02:49]}  Ng6 {[%clk 0:02:35]} 12. Nd5 {[%clk 0:02:47]}  O-O-O {[%clk 0:02:35]} 13. Be3 {[%clk 0:02:43]}  Rhf8 {[%clk 0:02:24]} 14. h4 {[%clk 0:02:21]}  h5 {[%clk 0:02:05]} 15. Ke2 {[%clk 0:01:48]}  Na5 {[%clk 0:01:56]} 16. Bc2 {[%clk 0:01:43]}  c6 {[%clk 0:01:55]} 17. Nb6+ {[%clk 0:01:06]}  Kc7 {[%clk 0:01:54]} 18. Na4 {[%clk 0:00:55]}  Bxe3 {[%clk 0:01:50]} 19. fxe3 {[%clk 0:00:54]}  b5 {[%clk 0:01:50]} 20. b4 {[%clk 0:00:54]}  bxa4 {[%clk 0:01:43]} 21. bxa5 {[%clk 0:00:54]}  a3 {[%clk 0:01:44]} 22. Rab1 {[%clk 0:00:52]}  Rb8 {[%clk 0:01:44]} 23. Rb3 {[%clk 0:00:44]}  Rb5 {[%clk 0:01:27]} 24. Rxa3 {[%clk 0:00:41]}  Rb2 {[%clk 0:01:23]} 25. Kd2 {[%clk 0:00:41]}  Rfb8 {[%clk 0:01:23]} 26. d4 {[%clk 0:00:28]}  c5 {[%clk 0:01:06]} 27. Kd3 {[%clk 0:00:24]}  c4+ {[%clk 0:00:53]} 28. Kd2 {[%clk 0:00:23]}  Kd7 {[%clk 0:00:50]} 29. Kc1 {[%clk 0:00:20]}  Ke7 {[%clk 0:00:49]} 30. Rh2 {[%clk 0:00:19]}  Nf8 {[%clk 0:00:43]} 31. Ra4 {[%clk 0:00:19]}  Ne6 {[%clk 0:00:39]} 32. Rxc4 {[%clk 0:00:19]}  Rxa2 {[%clk 0:00:39]} 33. Rg2 {[%clk 0:00:18]}  g6 {[%clk 0:00:39]} 34. dxe5 {[%clk 0:00:18]}  dxe5 {[%clk 0:00:39]} 35. Rb4 {[%clk 0:00:13]}  Rc8 {[%clk 0:00:37]} 36. Kb1 {[%clk 0:00:11]}  Rxa5 {[%clk 0:00:36]} 37. Rd2 {[%clk 0:00:11]}  Rxc3 {[%clk 0:00:35]} 38. Rb7+ {[%clk 0:00:11]}  Kf6 {[%clk 0:00:35]} 39. Rdd7 {[%clk 0:00:12]}  Rb5+ {[%clk 0:00:35]} 40. Rxb5 {[%clk 0:00:11]}  axb5 {[%clk 0:00:36]} 41. Rb7 {[%clk 0:00:11]}  Rxe3 {[%clk 0:00:36]} 42. Rxb5 {[%clk 0:00:11]}  Rxf3 {[%clk 0:00:36]} 43. Rb6 {[%clk 0:00:11]}  Rf4 {[%clk 0:00:36]} 44. Kc1 {[%clk 0:00:10]}  Rxh4 {[%clk 0:00:36]} 45. Kd2 {[%clk 0:00:10]}  Rh2+ {[%clk 0:00:35]} 46. Kc3 {[%clk 0:00:10]}  h4 {[%clk 0:00:34]} 47. Bb3 {[%clk 0:00:09]}  Rh3+ {[%clk 0:00:31]} 48. Kb4 {[%clk 0:00:09]}  Re3 {[%clk 0:00:31]} 49. Bd5 {[%clk 0:00:09]}  h3 {[%clk 0:00:30]} 50. Rb8 {[%clk 0:00:10]}  h2 {[%clk 0:00:29]} 51. Rh8 {[%clk 0:00:10]}  Re2 {[%clk 0:00:29]} 52. Kc4 {[%clk 0:00:10]}  Nf4 {[%clk 0:00:29]} 53. Bc6 {[%clk 0:00:09]}  Rc2+ {[%clk 0:00:27]} 54. Kb5 {[%clk 0:00:09]}  g5 {[%clk 0:00:22]} 55. Bd7 {[%clk 0:00:09]}  Re2 {[%clk 0:00:19]} 56. Bf5 {[%clk 0:00:09]}  g4 {[%clk 0:00:18]} 57. Kc6 {[%clk 0:00:08]}  g3 {[%clk 0:00:18]} 58. Kd6 {[%clk 0:00:09]}  g2 {[%clk 0:00:18]} 59. Rh6+ {[%clk 0:00:08]}  Kg7 {[%clk 0:00:18]} 60. Rh7+ {[%clk 0:00:08]}  Kf6 {[%clk 0:00:18]} 61. Rh6+ {[%clk 0:00:09]}  Kg5 {[%clk 0:00:18]} 62. Rh8 {[%clk 0:00:06]}  g1=Q {[%clk 0:00:18]} 63. Rg8+ {[%clk 0:00:07]}  Kh4 {[%clk 0:00:19]} 64. Rh8+ {[%clk 0:00:07]}  Kg3 {[%clk 0:00:19]} 65. Rg8+ {[%clk 0:00:03]}  Kf2 {[%clk 0:00:20]} 0-1


[Site "https://www.chess.com"]